fUSD/lending_fUSD_20241219
["ID","MTS","AMOUNT","RATE_DAILY","PERIOD"]
[345981885,1734595844180,-500.0,0.00022687,4]
[345981886,1734595844189,-500.0,0.00022687,4]
[345981887,1734595844199,-500.0,0.00022687,4]
[345981888,1734595844208,-500.0,0.00022687,4]
[345981889,1734595844218,-245.39535293,0.00022687,4]
[345981890,1734595844227,-500.0,0.00022687,4]
[345981891,1734595844237,-501.51121957,0.00022687,4]
[345981892,1734595844246,-500.0,0.00022687,4]
[345981893,1734595844256,-502.30076579,0.00022687,4]
[345981894,1734595844265,-500.0,0.00022687,4]
[345981895,1734595844275,-500.0,0.00022687,4]
[345981896,1734595844284,-500.0,0.00022687,4]
[345981897,1734595844294,-500.0,0.00022687,4]
[345981898,1734595844303,-500.0,0.00022687,4]
[345981899,1734595844313,-500.0,0.00022687,4]
[345981900,1734595844322,-500.0,0.00022687,4]
[345981901,1734595844331,-500.0,0.00022687,4]
[345981902,1734595844341,-500.0,0.00022687,4]
[345981903,1734595844350,-500.0,0.00022687,4]
[345981904,1734595844360,-570.1216377,0.00022687,4]
[345981905,1734595844369,-500.0,0.00022687,4]
[345981906,1734595844379,-285.46896866,0.00022687,4]
[345981907,1734595844390,-500.0,0.00022687,4]
[345981908,1734595844399,-500.0,0.00022687,4]
[345981909,1734595844410,-500.0,0.00022687,4]
[345981910,1734595844419,-500.0,0.00022687,4]
[345981911,1734595844428,-500.63794058,0.00022687,4]
[345981912,1734595844437,-502.13244202,0.00022687,4]
[345981913,1734595844447,-500.0,0.00022687,4]
[345981914,1734595844456,-500.0,0.00022687,4]
[345981915,1734595844466,-500.0,0.00022687,4]
[345981916,1734595844476,-500.0,0.00022687,4]
[345981917,1734595844486,-500.0,0.00022687,4]
[345981918,1734595844495,-238.53553711,0.00022687,4]
[345981919,1734595844508,-500.0,0.00022687,4]
[345981920,1734595844518,-477.1,0.00022687,4]
[345981921,1734595844527,-500.0,0.00022687,4]
[345981922,1734595844537,-500.0,0.00022687,4]
[345981923,1734595844547,-500.0,0.00022687,4]
[345981924,1734595844556,-209.90558448,0.00022687,4]
[345981925,1734595844566,-500.0,0.00022687,4]
[345981926,1734595844575,-500.0,0.00022687,4]
[345981927,1734595844585,-500.0,0.00022687,4]
[345981928,1734595844595,-526.28,0.00022687,4]
[345981929,1734595844604,-500.0,0.00022687,4]
[345981930,1734595844613,-500.0,0.00022687,4]
[345981931,1734595844623,-500.0,0.00022687,4]
[345981932,1734595844632,-500.0,0.00022687,4]
[345981933,1734595844642,-576.37287092,0.00022687,4]
[345981934,1734595844651,-500.0,0.00022687,4]
[345981935,1734595844660,-196.81219616,0.00022687,4]
[345981936,1734595844670,-500.0,0.00022687,4]
[345981937,1734595844679,-500.0,0.00022687,4]
[345981938,1734595844689,-500.0,0.00022687,4]
[345981939,1734595844698,-500.0,0.00022687,4]
[345981940,1734595844708,-500.0,0.00022687,4]
[345981941,1734595844717,-500.0,0.00022687,4]
[345981942,1734595844726,-500.0,0.00022687,4]
[345981943,1734595844736,-500.0,0.00022687,4]
[345981944,1734595844745,-500.0,0.00022687,4]
[345981945,1734595844754,-500.0,0.00022687,4]
[345981946,1734595844764,-452.24,0.00022687,4]
[345981947,1734595844774,-500.0,0.00022687,4]
[345981948,1734595844783,-500.0,0.00022687,4]
[345981949,1734595844792,-500.0,0.00022687,4]
[345981950,1734595844801,-500.0,0.00022687,4]
[345981951,1734595844810,-500.0,0.00022687,4]
[345981952,1734595844820,-500.0,0.00022687,4]
[345981953,1734595844829,-297.68295308,0.00022687,4]
[345981954,1734595844838,-500.0,0.00022687,4]
[345981955,1734595844847,-500.0,0.00022687,4]
[345981956,1734595844857,-500.0,0.00022687,4]
[345981957,1734595844866,-500.0,0.00022687,4]
[345981958,1734595844876,-500.0,0.00022687,4]
[345981959,1734595844886,-500.0,0.00022687,4]
[345981960,1734595844895,-501.12946003,0.00022687,4]
[345981961,1734595844905,-500.0,0.00022687,4]
[345981962,1734595844914,-512.18196274,0.00022687,4]
[345981963,1734595844923,-500.0,0.00022687,4]
[345981964,1734595844933,-501.19383093,0.00022687,4]
[345981965,1734595844943,-500.0,0.00022687,4]
[345981966,1734595844952,-500.0,0.00022687,4]
[345981967,1734595844961,-500.0,0.00022687,4]
[345981968,1734595844971,-500.0,0.00022687,4]
[345981969,1734595844980,-500.0,0.00022687,4]
[345981970,1734595844989,-501.45400093,0.00022687,4]
[345981971,1734595844999,-500.0,0.00022687,4]
[345981972,1734595845009,-501.62867634,0.00022687,4]
[345981973,1734595845019,-500.0,0.00022687,4]
[345981974,1734595845028,-500.0,0.00022687,4]
[345981975,1734595845038,-500.0,0.00022687,4]
[345981976,1734595845047,-649.80181794,0.00022687,4]
[345981977,1734595845056,-500.0,0.00022687,4]
[345981978,1734595845066,-500.0,0.00022687,4]
[345981979,1734595845076,-500.85096437,0.00022687,4]
[345981980,1734595845085,-500.0,0.00022687,4]
[345981981,1734595845094,-535.40752116,0.00022687,4]
[345981982,1734595845103,-500.0,0.00022687,4]
[345981983,1734595845112,-500.0,0.00022687,4]
[345981984,1734595845122,-500.0,0.00022687,4]
[345981985,1734595845131,-300.90317893,0.00022687,4]
[345981986,1734595845145,-500.0,0.00022687,4]
[345981987,1734595845154,-500.0,0.00022687,4]
[345981988,1734595845164,-500.0,0.00022687,4]
[345981989,1734595845173,-237.44275661,0.00022687,4]
[345981990,1734595845182,-501.28277192,0.00022687,4]
[345981991,1734595845192,-501.16372696,0.00022687,4]
[345981992,1734595845201,-503.78438804,0.00022687,4]
[345981993,1734595845211,-500.0,0.00022687,4]
[345981994,1734595845220,-500.0,0.00022687,4]
[345981995,1734595845229,-502.07740866,0.00022687,4]
[345981996,1734595845239,-500.0,0.00022687,4]
[345981997,1734595845248,-500.0,0.00022687,4]
[345981998,1734595845257,-500.0,0.00022687,4]
[345981999,1734595845267,-357.69,0.00022687,4]
[345982000,1734595845277,-500.0,0.00022687,4]
[345982001,1734595845287,-500.0,0.00022687,4]
[345982002,1734595845296,-500.0,0.00022687,4]
[345982003,1734595845306,-500.0,0.00022687,4]
[345982004,1734595845315,-500.0,0.00022687,4]
[345982005,1734595845325,-500.0,0.00022687,4]
[345982006,1734595845334,-500.0,0.00022687,4]
[345982007,1734595845344,-500.0,0.00022687,4]
[345982008,1734595845353,-500.0,0.00022687,4]
[345982009,1734595845363,-500.0,0.00022687,4]
[345982010,1734595845373,-500.0,0.00022687,4]
[345982011,1734595845383,-573.82,0.00022687,4]
[345982012,1734595845394,-500.0,0.00022687,4]
[345982013,1734595845404,-500.0,0.00022687,4]
[345982014,1734595845413,-500.0,0.00022687,4]
[345982015,1734595845423,-625.34,0.00022687,4]
[345982016,1734595845433,-500.0,0.00022687,4]
[345982017,1734595845442,-500.0,0.00022687,4]
[345982018,1734595845452,-500.0,0.00022687,4]
[345982019,1734595845461,-510.12,0.00022687,4]
[345982020,1734595845470,-500.0,0.00022687,4]
[345982021,1734595845480,-500.0,0.00022687,4]
[345982022,1734595845489,-10000.0,0.00022688,2]
[345982023,1734595845499,-2000.0,0.0002269,2]
[345982024,1734595845511,-200.0,0.0002269,2]
[345982025,1734595845521,-200.0,0.0002269,2]
[345982026,1734595845530,-577.04172339,0.00022691,2]
[345982027,1734595845540,-506.16823711,0.00022691,2]
[345982028,1734595845551,-337.96,0.00022693,2]
[345982029,1734595845560,-569.99713335,0.00022697,2]
[345982030,1734595845570,-499.45,0.000227,2]
[345982031,1734595845580,-496.15,0.000227,2]
[345982032,1734595845591,-500.46,0.00022708,2]
[345982033,1734595845600,-501.9,0.00022708,2]
[345982034,1734595845610,-230.47343364,0.00022727,2]
[345982035,1734595845620,-161.88817481,0.00022728,2]
[345982036,1734595845629,-500.0,0.00022737,4]
[345982037,1734595845640,-500.0,0.00022737,4]
[345982038,1734595845650,-500.0,0.00022737,4]
[345982039,1734595845659,-500.0,0.00022737,4]
[345982040,1734595845669,-783.93,0.00022737,4]
[345982041,1734595845678,-658.25,0.00022737,4]
[345982042,1734595845688,-361.10784501,0.00022737,4]
[345982043,1734595845698,-500.0,0.00022737,4]
[345982044,1734595845707,-500.0,0.00022737,4]
[345982045,1734595845717,-500.0,0.00022737,4]
[345982046,1734595845726,-500.0,0.00022737,4]
[345982047,1734595845736,-542.9,0.00022737,4]
[345982048,1734595845745,-500.0,0.00022737,4]
[345982049,1734595845754,-500.0,0.00022737,4]
[345982050,1734595845764,-500.0,0.00022737,4]
[345982051,1734595845774,-513.88,0.00022737,4]
[345982052,1734595845784,-756.51,0.00022737,4]
[345982053,1734595845793,-559.18,0.00022737,4]
[345982054,1734595845803,-1943.35,0.00022737,4]
[345982055,1734595845812,-1371.76,0.00022737,4]
[345982056,1734595845822,-1115.28,0.00022737,4]
[345982057,1734595845831,-564.45,0.00022737,4]
[345982058,1734595845842,-659.01,0.00022737,4]
[345982059,1734595845852,-874.12,0.00022737,4]
[345982060,1734595845862,-500.0,0.00022737,4]
[345982062,1734595845872,-500.0,0.00022737,4]
[345982063,1734595845882,-500.0,0.00022737,4]
[345982064,1734595845893,-667.86,0.00022737,4]
[345982065,1734595845903,-1787.37,0.00022737,4]
[345982066,1734595845912,-500.0,0.00022737,4]
[345982067,1734595845922,-500.0,0.00022737,4]
[345982068,1734595845932,-203.84972854,0.00022737,4]
[345982069,1734595845941,-500.0,0.00022737,4]
[345982070,1734595845951,-500.0,0.00022737,4]
[345982071,1734595845960,-500.0,0.00022737,4]
[345982072,1734595845970,-500.0,0.00022737,4]
[345982073,1734595845980,-500.0,0.00022737,4]
[345982074,1734595845990,-500.0,0.00022737,4]
[345982075,1734595846000,-500.0,0.00022737,4]
[345982076,1734595846010,-500.0,0.00022737,4]
[345982077,1734595846020,-500.0,0.00022737,4]
[345982078,1734595846029,-500.0,0.00022737,4]
[345982079,1734595846039,-620.42,0.00022737,4]
[345982080,1734595846210,-500.0,0.00022738,4]
[345982081,1734595846226,-500.0,0.00022738,4]
[345982082,1734595846235,-536.51925562,0.00022738,4]
[345982083,1734595846244,-500.0,0.00022738,4]
[345982084,1734595846253,-500.0,0.00022738,4]
[345982085,1734595846263,-500.0,0.00022738,4]
[345982086,1734595846272,-500.0,0.00022738,4]
[345982087,1734595846281,-500.0,0.00022738,4]
[345982088,1734595846290,-500.0,0.00022738,4]
[345982089,1734595846300,-500.0,0.00022738,4]
[345982090,1734595846309,-500.0,0.00022738,4]
[345982091,1734595846318,-500.0,0.00022738,4]
[345982092,1734595846328,-500.0,0.00022738,4]
[345982093,1734595846338,-518.09,0.00022738,4]
[345982094,1734595846347,-500.0,0.00022738,4]
[345982095,1734595846356,-309.02129239,0.00022738,4]
[345982096,1734595846366,-500.0,0.00022738,4]
[345982097,1734595846376,-500.0,0.00022738,4]
[345982098,1734595846385,-500.0,0.00022738,4]
[345982099,1734595846394,-500.0,0.00022738,4]
[345982100,1734595846404,-500.0,0.00022738,4]
[345982101,1734595846413,-500.0,0.00022738,4]
[345982102,1734595846423,-500.0,0.00022738,4]
[345982103,1734595846433,-500.0,0.00022738,4]
[345982104,1734595846443,-500.0,0.00022738,4]
[345982105,1734595846453,-500.0,0.00022738,4]
[345982106,1734595846463,-460.48015153,0.00022738,4]
[345982107,1734595846473,-500.0,0.00022738,4]
[345982108,1734595846483,-500.0,0.00022738,4]
[345982109,1734595846492,-524.33912546,0.00022738,4]
[345982110,1734595846503,-500.0,0.00022738,4]
[345982111,1734595846513,-500.0,0.00022738,4]
[345982112,1734595846523,-500.0,0.00022738,4]
[345982113,1734595846532,-374.35048275,0.00022738,4]
[345982114,1734595846542,-500.0,0.00022738,4]
[345982115,1734595846551,-500.0,0.00022738,4]
[345982116,1734595846561,-329.45017475,0.00022738,4]
[345982117,1734595846570,-500.0,0.00022738,4]
[345982118,1734595846580,-500.0,0.00022738,4]
[345982119,1734595846591,-500.0,0.00022738,4]
[345982120,1734595846600,-517.28,0.00022738,4]
[345982121,1734595846610,-721.93,0.00022738,4]
[345982122,1734595846619,-2731.73,0.00022738,4]
[345982123,1734595846628,-1364.66,0.00022738,4]
[345982124,1734595846638,-500.0,0.00022738,4]
[345982125,1734595846648,-500.0,0.00022738,4]
[345982126,1734595846658,-500.0,0.00022738,4]
[345982127,1734595846668,-500.0,0.00022738,4]
[345982128,1734595846677,-500.0,0.00022738,4]
[345982129,1734595846687,-799.04,0.00022738,4]
[345982130,1734595846696,-500.0,0.00022738,4]
[345982131,1734595846705,-500.0,0.00022738,4]
[345982132,1734595846715,-500.0,0.00022738,4]
[345982133,1734595846725,-500.0,0.00022738,4]
[345982134,1734595846734,-500.0,0.00022738,4]
[345982135,1734595846744,-936.22,0.00022738,4]
[345982136,1734595846753,-1042.92,0.00022738,4]
[345982137,1734595846762,-756.63,0.00022738,4]
[345982138,1734595846772,-182.21242877,0.00022738,4]
[345982139,1734595846781,-500.0,0.00022738,4]
[345982140,1734595846791,-556.2,0.00022738,4]
[345982141,1734595846800,-1185.07,0.00022738,4]
[345982142,1734595846809,-500.0,0.00022738,4]
[345982143,1734595846819,-500.0,0.00022738,4]
[345982144,1734595846828,-746.8,0.00022738,4]
[345982145,1734595846838,-500.0,0.00022738,4]
[345982146,1734595846847,-671.48,0.00022738,4]
[345982147,1734595846857,-645.56,0.00022738,4]
[345982148,1734595846866,-575.14,0.00022738,4]
[345982149,1734595846876,-500.0,0.00022738,4]
[345982150,1734595846887,-870.67,0.00022738,4]
[345982151,1734595846897,-701.45,0.00022738,4]
[345982152,1734595846907,-614.19,0.00022738,4]
[345982153,1734595846916,-960.51,0.00022738,4]
[345982154,1734595846925,-500.0,0.00022738,4]
[345982155,1734595846935,-835.11,0.00022738,4]
[345982156,1734595846945,-1479.84,0.00022738,4]
[345982157,1734595846955,-257.75192836,0.00022739,4]
[345982158,1734595846965,-500.0,0.00022739,4]
[345982159,1734595846975,-150.0,0.00022739,4]
[345982160,1734595846984,-2608.0,0.00022739,4]
[345982161,1734595846994,-1400.0,0.00022739,4]
[345982162,1734595847004,-294.55625922,0.00022739,4]
[345982163,1734595847013,-186.058657,0.00022739,4]
[345982164,1734595847022,-154.088307,0.00022739,4]
[345982165,1734595847031,-500.0,0.00022739,4]
[345982166,1734595847041,-500.0,0.00022739,4]
[345982167,1734595847050,-500.0,0.00022739,4]
[345982168,1734595847059,-500.0,0.00022739,4]
[345982169,1734595847069,-500.0,0.00022739,4]
[345982170,1734595847078,-500.0,0.00022739,4]
[345982171,1734595847088,-500.0,0.00022739,2]
[345982172,1734595847097,-500.0,0.00022739,4]
[345982173,1734595847107,-500.0,0.00022739,4]
[345982174,1734595847116,-500.0,0.00022739,4]
[345982175,1734595847125,-528.78623153,0.00022739,4]
[345982176,1734595847135,-237.37174802,0.00022739,4]
[345982177,1734595847145,-797.22,0.00022739,2]
[345982178,1734595847155,-500.0,0.00022739,4]
[345982179,1734595847164,-500.0,0.00022739,4]
[345982180,1734595847174,-500.0,0.00022739,4]
[345982181,1734595847183,-500.0,0.00022739,4]
[345982182,1734595847193,-203.59832153,0.00022739,4]
[345982183,1734595847203,-500.0,0.00022739,4]
[345982184,1734595847213,-500.0,0.00022739,4]
[345982185,1734595847222,-500.0,0.00022739,4]
[345982186,1734595847232,-500.0,0.00022739,4]
[345982187,1734595847241,-150.0,0.00022744,2]
[345982188,1734595847251,-301.27,0.00022744,2]
[345982189,1734595847261,-303.15,0.00022744,2]
[345982190,1734595847270,-150.0,0.00022744,2]
[345982191,1734595847281,-1447.34,0.00022744,2]
[345982192,1734595847290,-150.0,0.00022744,2]
[345982193,1734595847300,-150.0,0.00022744,2]
[345982194,1734595847309,-150.0,0.00022744,2]
[345982195,1734595847318,-150.0,0.00022744,2]
[345982196,1734595847328,-5351.50066913,0.00022777,2]
[345982197,1734595847338,-501.19,0.0002279,2]
[345982198,1734595847347,-496.6,0.0002279,2]
[345982199,1734595847357,-499.38,0.00022799,2]
[345982200,1734595847366,-502.78,0.00022799,2]
[345982201,1734595847375,-150.0,0.000228,2]
[345982202,1734595847385,-500.39,0.00022878,2]
[345982203,1734595847395,-499.32,0.00022878,2]
[345982204,1734595847405,-509.24,0.0002288,2]
[345982205,1734595847414,-501.86,0.0002288,2]
[345982206,1734595847424,-490.27,0.0002288,2]
[345982207,1734595847433,-507.99,0.0002288,2]
[345982208,1734595847442,-506.45,0.0002288,2]
[345982209,1734595847452,-504.64,0.0002288,2]
[345982210,1734595847462,-509.875,0.00022881,2]
[345982211,1734595847471,-500.0,0.00022887,4]
[345982212,1734595847481,-500.0,0.00022887,4]
[345982213,1734595847491,-330.45478661,0.00022887,7]
[345982214,1734595847501,-500.0,0.00022887,4]
[345982215,1734595847514,-500.0,0.00022887,4]
[345982216,1734595847523,-600.0,0.000229,8]
[345982217,1734595847532,-152.0,0.00022903,3]
[345982218,1734595847541,-493.17,0.00022912,2]
[345982219,1734595847551,-499.13,0.00022917,2]
[345982220,1734595847561,-493.46,0.00022917,2]
[345982221,1734595847570,-506.28,0.00022917,2]
[345982222,1734595847580,-507.19,0.00022917,2]
[345982223,1734595847589,-508.06,0.00022917,2]
[345982224,1734595847599,-503.07,0.00022917,2]
[345982225,1734595847608,-500.91,0.00022917,2]
[345982226,1734595847617,-200.0,0.00022917,2]
[345982227,1734595847626,-200.0,0.00022917,2]
[345982228,1734595847635,-569.99713335,0.00022948,2]
[345982229,1734595847644,-11376.95757904,0.00022961,2]
[345982230,1734595847654,-507.65542558,0.00022961,4]
[345982231,1734595847663,-500.0,0.00022961,4]
[345982232,1734595847672,-500.0,0.00022961,4]
[345982233,1734595847681,-170.63,0.00022961,4]
[345982234,1734595847691,-500.0,0.00022961,4]
[345982235,1734595847700,-500.0,0.00022961,4]
[345982236,1734595847709,-500.0,0.00022961,4]
[345982237,1734595847718,-500.0,0.00022961,4]
[345982238,1734595847727,-500.0,0.00022961,4]
[345982239,1734595847736,-500.0,0.00022961,4]
[345982240,1734595847746,-500.0,0.00022961,4]
[345982241,1734595847755,-500.0,0.00022961,4]
[345982242,1734595847765,-500.0,0.00022961,4]
[345982243,1734595847774,-506.16406217,0.00022961,4]
[345982244,1734595847784,-500.0,0.00022961,4]
[345982245,1734595847793,-550.50776094,0.00022961,4]
[345982246,1734595847802,-500.0,0.00022961,4]
[345982247,1734595847811,-500.0,0.00022961,4]
[345982248,1734595847821,-500.0,0.00022961,4]
[345982249,1734595847830,-500.0,0.00022961,4]
[345982250,1734595847839,-504.0480166,0.00022961,4]
[345982251,1734595847849,-500.0,0.00022961,4]
[345982252,1734595847858,-500.0,0.00022961,4]
[345982253,1734595847867,-500.0,0.00022961,4]
[345982254,1734595847877,-500.0,0.00022961,4]
[345982255,1734595847887,-500.0,0.00022961,4]
[345982256,1734595847897,-500.0,0.00022961,4]
[345982257,1734595847906,-500.0,0.00022961,4]
[345982258,1734595847915,-500.0,0.00022961,4]
[345982259,1734595847924,-500.0,0.00022961,4]
[345982260,1734595847934,-514.80776673,0.00022961,4]
[345982261,1734595847943,-500.0,0.00022961,4]
[345982262,1734595847952,-500.0,0.00022961,4]
[345982263,1734595847961,-500.0,0.00022961,4]
[345982264,1734595847971,-500.0,0.00022961,4]
[345982265,1734595847981,-500.0,0.00022961,4]
[345982266,1734595847990,-500.0,0.00022961,4]
[345982267,1734595847999,-500.0,0.00022961,4]
[345982268,1734595848008,-500.0,0.00022961,4]
[345982269,1734595848017,-500.0,0.00022961,2]
[345982270,1734595848027,-437.61231421,0.00022961,4]
[345982271,1734595848037,-500.0,0.00022961,4]
[345982272,1734595848046,-390.93240012,0.00022961,4]
[345982273,1734595848056,-500.0,0.00022961,4]
[345982274,1734595848066,-500.0,0.00022961,4]
[345982275,1734595848075,-500.0,0.00022961,4]
[345982276,1734595848085,-500.0,0.00022961,4]
[345982277,1734595848095,-500.0,0.00022961,4]
[345982278,1734595848105,-500.0,0.00022961,4]
[345982279,1734595848114,-500.0,0.00022961,4]
[345982280,1734595848123,-499.70773801,0.00022961,4]
[345982281,1734595848133,-500.0,0.00022961,4]
[345982282,1734595848147,-500.0,0.00022961,4]
[345982283,1734595848157,-500.0,0.00022961,4]
[345982284,1734595848167,-500.0,0.00022961,4]
[345982285,1734595848176,-500.0,0.00022961,4]
[345982286,1734595848186,-502.00581962,0.00022961,4]
[345982287,1734595848196,-500.0,0.00022961,4]
[345982288,1734595848206,-419.9030464,0.00022961,4]
[345982289,1734595848216,-624.88,0.00022961,4]
[345982290,1734595848226,-500.0,0.00022961,4]
[345982291,1734595848235,-502.4444932,0.00022961,4]
[345982292,1734595848245,-500.0,0.00022961,4]
[345982293,1734595848254,-507.77354004,0.00022961,4]
[345982294,1734595848264,-507.37081261,0.00022961,4]
[345982295,1734595848274,-500.0,0.00022961,4]
[345982296,1734595848283,-500.0,0.00022961,4]
[345982297,1734595848292,-500.0,0.00022961,4]
[345982298,1734595848302,-500.0,0.00022961,4]
[345982299,1734595848311,-500.0,0.00022961,4]
[345982300,1734595848321,-500.0,0.00022961,4]
[345982301,1734595848330,-500.0,0.00022961,4]
[345982302,1734595848339,-500.0,0.00022961,4]
[345982303,1734595848349,-500.0,0.00022961,4]
[345982304,1734595848358,-500.0,0.00022961,4]
[345982305,1734595848367,-634.92932398,0.00022961,4]
[345982306,1734595848377,-500.0,0.00022961,4]
[345982307,1734595848386,-500.0,0.00022961,4]
[345982308,1734595848399,-500.0,0.00022961,4]
[345982309,1734595848408,-500.0,0.00022961,4]
[345982310,1734595848417,-500.0,0.00022961,4]
[345982311,1734595848427,-500.0,0.00022961,4]
[345982312,1734595848437,-500.0,0.00022961,4]
[345982313,1734595848446,-500.0,0.00022961,4]
[345982314,1734595848455,-500.0,0.00022961,4]
[345982315,1734595848465,-628.17122025,0.00022961,4]
[345982316,1734595848513,-375.97,0.00022961,4]
[345982317,1734595848523,-500.0,0.00022961,4]
[345982318,1734595848532,-500.0,0.00022961,4]
[345982319,1734595848542,-500.0,0.00022961,4]
[345982320,1734595848553,-500.0,0.00022961,4]
[345982321,1734595848562,-500.0,0.00022961,4]
[345982322,1734595848572,-609.48507966,0.00022961,4]
[345982323,1734595848584,-253.91,0.00022961,4]
[345982324,1734595848593,-500.0,0.00022961,4]
[345982325,1734595848601,-500.0,0.00022961,4]
[345982326,1734595848610,-500.0,0.00022961,4]
[345982327,1734595848620,-500.0,0.00022961,4]
[345982328,1734595848629,-500.0,0.00022961,4]
[345982329,1734595848639,-500.0,0.00022961,4]
[345982330,1734595848650,-500.0,0.00022961,4]
[345982331,1734595848659,-526.28,0.00022961,4]
[345982332,1734595848668,-500.0,0.00022961,4]
[345982333,1734595848677,-500.0,0.00022961,4]
[345982334,1734595848686,-500.0,0.00022961,4]
[345982335,1734595848695,-508.04722237,0.00022961,4]
[345982336,1734595848704,-500.0,0.00022961,4]
[345982337,1734595848713,-500.0,0.00022961,4]
[345982338,1734595848723,-500.0,0.00022961,4]
[345982339,1734595848732,-500.0,0.00022961,4]
[345982340,1734595848741,-500.0,0.00022961,4]
[345982341,1734595848750,-500.0,0.00022961,4]
[345982342,1734595848759,-500.0,0.00022961,4]
[345982343,1734595848769,-500.0,0.00022961,4]
[345982344,1734595848778,-500.0,0.00022961,4]
[345982345,1734595848788,-500.0,0.00022961,4]
[345982346,1734595848797,-500.0,0.00022961,4]
[345982347,1734595848806,-466.83,0.00022961,4]
[345982348,1734595848815,-624.78,0.00022961,4]
[345982349,1734595848824,-500.0,0.00022961,4]
[345982350,1734595848834,-500.0,0.00022961,4]
[345982351,1734595848843,-500.0,0.00022961,4]
[345982352,1734595848852,-500.0,0.00022961,4]
[345982353,1734595848862,-500.0,0.00022961,4]
[345982354,1734595848870,-500.0,0.00022961,4]
[345982355,1734595848879,-500.0,0.00022961,4]
[345982356,1734595848890,-500.0,0.00022961,4]
[345982357,1734595848899,-500.0,0.00022961,4]
[345982358,1734595848908,-445.97590507,0.00022961,4]
[345982359,1734595848917,-500.0,0.00022961,4]
[345982360,1734595848926,-500.0,0.00022961,4]
[345982361,1734595848935,-171.32,0.00022961,4]
[345982362,1734595848945,-500.0,0.00022961,4]
[345982363,1734595848954,-500.0,0.00022961,4]
[345982364,1734595848964,-486.17419082,0.00022961,4]
[345982365,1734595848973,-500.0,0.00022961,4]
[345982366,1734595848982,-500.0,0.00022961,4]
[345982367,1734595848991,-500.0,0.00022961,4]
[345982368,1734595849001,-500.0,0.00022961,4]
[345982369,1734595849010,-500.0,0.00022961,4]
[345982370,1734595849019,-500.0,0.00022961,4]
[345982371,1734595849028,-500.0,0.00022961,4]
[345982372,1734595849038,-500.0,0.00022961,4]
[345982373,1734595849047,-231.9,0.00022961,4]
[345982374,1734595849056,-399.48,0.00022961,4]
[345982375,1734595849065,-500.0,0.00022961,4]
[345982376,1734595849074,-500.0,0.00022961,4]
[345982377,1734595849083,-500.0,0.00022961,4]
[345982378,1734595849092,-510.12,0.00022961,4]
[345982379,1734595849101,-500.0,0.00022961,4]
[345982380,1734595849111,-597.95,0.00022961,4]
[345982381,1734595849121,-500.0,0.00022969,2]
[345982382,1734595849130,-500.0,0.00022969,2]
[345982383,1734595849143,-500.0,0.00022969,2]
[345982384,1734595849152,-439.34574576,0.00022969,2]
[345982385,1734595849161,-189.73067647,0.00022969,2]